Cogmind - Beta 14 @@@ ROGUE MODE // 2025.03.04 @ 17:38:30 Player: osman sinnoks Result: Destroyed by G-47 Trooper with Particle Gun Performance ------------- Evolutions (0) 0 Regions Visited (2) 400 Robots Destroyed (22) 110 Value Destroyed (507) 507 Prototype IDs (0) 0 Alien Tech Used (0) 0 Bonus (0) 0 TOTAL SCORE: 1017 Bonus ------- None Cogmind --------- Core Integrity 0/250 Matter 286/300 Energy 250/250 System Corruption 1% Temperature Cool (21) Movement Walking (120) Location -10/Mines Parts ------- > --- POWER (1) -------- Ion Engine > --- PROPULSION (2) --- Aluminum Leg Aluminum Leg > --- UTILITY (2) ------ Medium Storage Unit Signal Interpreter > --- WEAPON (2) ------- Assault Rifle Light Cannon > --- INVENTORY (10) --- Ion Engine Light Treads Light Treads Aluminum Leg Improved Heat Sink Experimental Sensor Array Targeting Computer Light Cannon Grenade Launcher Peak State ------------ > --- POWER ------------ Ion Engine > --- PROPULSION ------- Aluminum Leg Aluminum Leg > --- UTILITY ---------- Small Storage Unit Seismic Detector > --- WEAPON ----------- Assault Rifle Assault Rifle > --- INVENTORY -------- Ion Engine Light Treads Light Treads Aluminum Leg Wheel Compact Wheel Improved Heat Sink Light Assault Rifle [Rating: 8] Favorites ----------- Power Ion Engine Engine Ion Engine Propulsion Aluminum Leg Leg Aluminum Leg Utility Medium Storage Unit Device Seismic Detector Storage Medium Storage Unit Processor Signal Interpreter Weapon Assault Rifle Energy Gun EM Pulse Gun Ballistic Gun Assault Rifle Ballistic Cannon Light Cannon Build | -11 -10 -10 ------- Run | Yrd Mat Min Slots Evolved . | . . . Power . | . . . Propulsion . | . . . Utility . | . . . Weapon . | . . . Parts Attached 14 | 7 6 1 Power 1 | 1 . . Engine 1 | 1 . . Core . | . . . Reactor . | . . . Propulsion 4 | 2 2 . Treads . | . . . Leg 4 | 2 2 . Wheel . | . . . Hover . | . . . Flight . | . . . Utility 4 | 2 2 . Device 1 | 1 . . Storage 2 | 1 1 . Processor 1 | . 1 . Hackware . | . . . Protection . | . . . Artifact . | . . . Weapon 5 | 2 2 1 Energy Gun 1 | 1 . . Energy Cannon . | . . . Ballistic Gun 3 | 1 2 . Ballistic Cannon 1 | . . 1 Launcher . | . . . Special Weapon . | . . . Impact Weapon . | . . . Slashing Weapon . | . . . Piercing Weapon . | . . . Special Melee Weapon . | . . . Unidentified Prototypes . | . . . Parts Lost 4 | . 3 1 Power . | . . . Propulsion 1 | . 1 . Utility 1 | . 1 . Weapon 2 | . 1 1 Highest Loss Streak 1 | . 1 1 To Critical Strikes . | . . . Average Slot Usage (%) 95 | . 93 100 Engine 14 | . 14 14 Leg 27 | . 26 28 Device 6 | . 9 . Storage 14 | . 14 14 Processor 5 | . 1 14 Energy Gun 2 | . 2 . Ballistic Gun 20 | . 23 14 Ballistic Cannon 3 | . . 13 Peak Build Rating 8 | 7 8 8 Average Rating 7 | 4 7 7 On Entrance 5 | . 7 8 Naked Turns . | . . . Heaviest Build 20 | 15 20 20 Greatest Support 20 | 20 20 20 Greatest Overweight (x) 1 | 1 1 . Average Overweight (x) . | . . . Largest Inventory Capacity 10 | 8 10 10 Average Capacity 9 | 7 8 10 Most Carried 10 | 7 10 9 Average Carried 7 | 4 7 8 Final Capacity 10 | 8 10 10 Final Carried 9 | 6 9 9 Class Distribution -------------------- 100% | Mutant Dominant Class ---------------- Mutant | -10/Materials Mutant | -10/Mines Resources | -11 -10 -10 ----------- Run | Yrd Mat Min Matter Collected 705 | 280 311 114 Remotely . | . . . Salvage Created 674 | 52 516 106 Parts 39 | 4 26 9 Haulers Intercepted . | . . . Recyclers Shooed 2 | . 1 1 Parts Field Recycled . | . . . Retrieved Matter . | . . . Parts Self-Destructed . | . . . Prevented . | . . . Kills | -11 -10 -10 ------- Run | Yrd Mat Min Combat Hostiles Destroyed 17 | . 12 5 Guns 15 | . 12 3 Cannons 2 | . . 2 Classes Destroyed 6 | 1 5 . Worker 1 | . 1 . Tunneler 2 | 2 . . Operator 1 | . 1 . Watcher 1 | . 1 . Swarmer 6 | . 3 3 Grunt 11 | . 9 2 Best Kill Streak 5 | 1 5 3 Combat Bots Only 5 | . 5 3 Max Kills in Single Turn 2 | 1 2 1 Gunslinging . | . . . Exploded . | . . . Melee . | . . . Uniques/NPCs Destroyed . | . . . Combat | -11 -10 -10 -------- Run | Yrd Mat Min Hostile Shots Fired 116 | . 57 59 Missed 20 | . 10 10 Damage Taken 944 | . 523 421 Core 263 | . 138 125 Absorbed by Shields . | . . . Core Remaining (%) 100 | 100 . . Volleys Fired 81 | 12 54 15 Largest 2 | 1 2 2 Hottest 60 | 20 60 55 Shots Fired 141 | 12 100 29 Gun 131 | 12 100 19 Cannon 10 | . . 10 Launcher . | . . . Special . | . . . Kinetic 128 | 12 87 29 Thermal . | . . . Explosive . | . . . Electromagnetic 13 | . 13 . Robot Hit Streak 11 | 5 11 3 Robot Miss Streak 6 | 2 6 5 Penetration Max . | . . . Secondary Targets 2 | . 2 . Max Gunslinging Chain 1 | . 1 . Shots Hit Robots 77 | 8 58 11 Core Hits 34 | 3 26 5 Critical Kills . | . . . Critical Parts Destroyed . | . . . Critical Strikes . | . . . Melee Attacks . | . . . Impact . | . . . Slashing . | . . . Piercing . | . . . Sneak Attacks . | . . . Combat Hostiles . | . . . Follow-up Attacks . | . . . Damage Inflicted 1018 | 98 780 140 Guns 982 | 98 777 107 Cannons 33 | . . 33 Explosions . | . . . Melee . | . . . Ramming 3 | . 3 . Kinetic 881 | 98 643 140 Thermal . | . . . Explosive . | . . . Electromagnetic 134 | . 134 . Impact . | . . . Slashing . | . . . Piercing . | . . . Highest Corruption 1 | . 1 1 Average Corruption 1 | . 1 1 Corruption Purged . | . . . Corruption Blocked . | . . . Effects 5 | . . 5 Message Errors 1 | . . 1 Matter Fused 2 | . . 2 Misfires 1 | . . 1 Weapon Failures 1 | . . 1 Overload Shots . | . . . Overflow Damage . | . . . Projectiles . | . . . Explosions . | . . . Melee . | . . . Knockbacks . | . . . Impact . | . . . Kinetic . | . . . Secondary . | . . . Self-Inflicted Damage . | . . . Shots . | . . . Rammed . | . . . Targets Rammed 4 | . 4 . Kicked 4 | . 4 . Crushed . | . . . Highest Temperature 90 | . 90 14 Average Temperature 36 | . 41 8 Received Heat Transfer 342 | . 264 78 Siege Activations . | . . . Robots Corrupted . | . . . Combat Hostiles . | . . . Parts Fried . | . . . Impact Corruptions . | . . . Robots Melted . | . . . Combat Hostiles . | . . . Parts Melted . | . . . Heat Transferred . | . . . Parts Sabotaged . | . . . Parts Stolen . | . . . Parts Stripped . | . . . Power Chain Reactions . | . . . Alert | -11 -10 -10 ------- Run | Yrd Mat Min Peak Influence 257 | 10 257 195 Initial 47 | . 6 47 Average 114 | 2 113 148 Maximum Alert Level 1 | . 1 . Low Security (%) 97 | 100 95 100 Level 1 2 | . 4 . Level 2 . | . . . Level 3 . | . . . Level 4 . | . . . Level 5 . | . . . High Security . | . . . Max Security . | . . . Squads Dispatched 4 | . 4 . Investigation 1 | . 1 . Extermination . | . . . Reinforcement 3 | . 3 . Assault . | . . . Garrison . | . . . Intercept . | . . . Searches Triggered . | . . . Construction Impeded . | . . . Haulers Reinforced . | . . . Active Scanning Responses . | . . . Cargo Convoy Interrupts . | . . . Stealth | -11 -10 -10 --------- Run | Yrd Mat Min Distress Signals 4 | . 4 . Communications Jammed . | . . . Distress Signals . | . . . Times Spotted 34 | . 26 8 Peak Tracking Total 4 | . 4 3 Tactical Retreats 6 | . 4 2 Traps | -11 -10 -10 ------- Run | Yrd Mat Min Traps Triggered 2 | . 2 . Indirectly . | . . . Trap Hack Attempts . | . . . Triggered . | . . . Disarmed . | . . . Reprogrammed . | . . . Reused . | . . . Traps Extracted . | . . . Installed . | . . . Triggered . | . . . Machines | -11 -10 -10 ---------- Run | Yrd Mat Min Machines Disabled . | . . . Max in Single Turn . | . . . Machines Repaired . | . . . Machines Dismantled . | . . . Machines Sabotaged . | . . . Overloaded Fab Kills . | . . . Hacking | -11 -10 -10 --------- Run | Yrd Mat Min Machines Accessed 4 | . 4 . Terminals 4 | . 4 . Fabricators . | . . . Repair Stations . | . . . Recycling Units . | . . . Scanalyzers . | . . . Garrison Access . | . . . Total Hacks 8 | . 8 . Successful 3 | . 3 . Failed 5 | . 5 . Catastrophic 2 | . 2 . Database Lockouts . | . . . Manual 8 | . 8 . Terminals 8 | . 8 . Fabricators . | . . . Repair Stations . | . . . Recycling Units . | . . . Scanalyzers . | . . . Garrison Access . | . . . Terminal Hacks . | . . . Fabricator Hacks . | . . . Repair Station Hacks . | . . . Recycling Unit Hacks . | . . . Scanalyzer . | . . . Garrison Access Hacks . | . . . Unauthorized Hacks 3 | . 3 . Terminals 3 | . 3 . Botnet 3 | . 3 . Fabricators . | . . . Repair Stations . | . . . Recycling Units . | . . . Scanalyzers . | . . . Garrison Access . | . . . Data Cores Recovered . | . . . Used . | . . . Hacking Detections 4 | . 4 . Full Trace Events 1 | . 1 . Feedback Events . | . . . Feedback Blocked . | . . . Robot Schematics Acquired . | . . . Robots Built . | . . . Authchips . | . . . Time . | . . . Total Robot Build Rating . | . . . Part Schematics Acquired . | . . . Parts Built . | . . . Authchips . | . . . Time . | . . . Total Part Build Rating . | . . . Parts Repaired . | . . . Time . | . . . Parts Recycled . | . . . Recycled Matter . | . . . Retrieved Matter . | . . . Retrieved Components . | . . . Parts Scanalyzed . | . . . Part Schematics Acquired . | . . . Parts Damaged . | . . . Bothacking | -11 -10 -10 ------------ Run | Yrd Mat Min Used RIF Installer . | . . . Robots Hacked . | . . . Non-combat . | . . . Combat . | . . . Robot Hacks Applied . | . . . Relay Couplers Released . | . . . Fabnet Peak Effective % . | . . . Robots Rewired . | . . . Allies Hacked . | . . . Hacks Repelled . | . . . Allies | -11 -10 -10 -------- Run | Yrd Mat Min Total Allies 3 | . . 3 Largest Group 3 | . . 3 Highest-Rated Group 40 | . . 40 Highest-Rated Ally 16 | . . 16 Total Orders . | . . . Ally Attacks 3 | . . 3 Total Damage 13 | . . 13 Kills . | . . . Allies Corrupted . | . . . Allies Melted . | . . . Intel | -11 -10 -10 ------- Run | Yrd Mat Min Robot Analysis Total . | . . . Derelict Logs Recovered 1 | . . 1 Drone Launches . | . . . Drone Recoveries . | . . . Exploration | -11 -10 -10 ------------- Run | Yrd Mat Min Turns Passed 1432 | 112 930 390 Spaces Moved 856 | 69 540 247 Core 23 | 23 . . Treads . | . . . Legs 833 | 46 540 247 Wheels . | . . . Hover . | . . . Flight . | . . . Fastest Speed 50 | 50 120 120 Average Speed 120 | 100 123 120 Slowest Speed 190 | 120 190 120 Overloaded Moves . | . . . Propulsion Burnouts . | . . . Robots Hopped . | . . . Cave-ins Triggered . | . . . Exploration Rate (%) 40 | 5 78 39 Regions Visited 2 Branch Regions 1 Pre-discovered Areas . | . . . Known Exits Taken 1 | . 1 . Unknown Exits Taken 1 | 1 . . Scrap Searched 1 | . . 1 Spaces Dug . | . . . Terrain Destroyed . | . . . Melee . | . . . Projectile . | . . . AOE . | . . . Terrain Rammed . | . . . Walls Destroyed . | . . . Machines Disabled . | . . . Actions | -11 -10 -10 --------- Run | Yrd Mat Min Total 1115 | 99 705 311 Wait 134 | . 87 47 Move 854 | 68 539 247 Hop . | . . . Pick Up 22 | 12 9 1 Fast Attach 2 | 1 1 . Attach 9 | 6 2 1 Detach . | . . . Swap 3 | . 3 . Drop 6 | . 6 . Fire 81 | 12 54 15 Melee . | . . . Ram . | . . . Kick 4 | . 4 . Crush . | . . . Escape Stasis . | . . . Rewire . | . . . Trap . | . . . Miscellaneous . | . . . Route ------- -11/Scrapyard -10/Materials (discovered 3 exits: *Mat x2 / *Min) -10/Mines (discovered 1 exit: *Mat) History --------- Turn | Location | Event 11 | -11/Scrapyard | Discovered new exit (range 16) 113 | -11/Scrapyard | Entered Materials 307 | -10/Materials | Build established: Mutant 358 | -10/Materials | Discovered new exit (range 7) 569 | -10/Materials | Core integrity fell below 50% 948 | -10/Materials | Discovered new exit (range 3) 950 | -10/Materials | Identified exit to Materials 1034 | -10/Materials | Discovered new exit (range 7) 1041 | -10/Materials | Identified exit to Mines 1043 | -10/Materials | Entered Mines 1076 | -10/Mines | Core integrity fell below 20% 1101 | -10/Mines | Discovered exit to Materials (range 10) 1114 | -10/Mines | Found a damaged Exp. Sensor Array with a note attached 1118 | -10/Mines | Found Prototype Device 1310 | -10/Mines | Learned location of 1 exit from Materials 1396 | -10/Mines | Assisted by bots powering up and referring to "LRC-V3" 1433 | -10/Mines | Destroyed by G-47 Trooper with Particle Gun Last Messages --------------- 01146_ Acquired 58 matter. 01148_ K-01 Serf collects debris. 01164_ System corrupted: Matter fused (-7). 01164_ K-01 Serf collects debris. 01202_ System corrupted: FCS attempts to trigger Lgt. Cannon. 01202_ System corrupted: Lgt. Cannon misfires. 01240_ G-34 Mercenary destroyed. 01280_ Acquired 27 matter. 01310_ Acquired derelict log, extracted data. Data stored: Materials exits (x1). 01396_ Trooper 1a: "Hello LRC-V3. What is your command?" 01396_ Mercenary 1a: "Hello LRC-V3. What is your command?" 01396_ Trooper 1b: "Hello LRC-V3. What is your command?" 01425_ Critical hit (Burn: +37). 01430_ 1:BEKX>C%#NHACS%IEHLRU 01430_ G-34 Mercenary destroyed. Map ----- +----------------------------------------------------+ | | | | | | | | | | | | | | | | | ????????????????????????????? | | ?????????#################??? | | ?????????# """" """" #??? | | ?????##### """" """" #??? | | ?????# """" """" #??? | | ?????# ### #??? | | ?????# #?# #??? | | ###### #?# #??? | | # #?# % #??? | | # ######?# ! #??? | | # #??????##########%######??? | | # #????????????#### #???????? | | # #######??????# #???????? | | ! #????### ###########? | | ! ! #???## #??# *%[ #? | | ###### #???# ##?#g #? | | ?????# #???# #?#% #? | | ?????# #???# #?# @ #? | | ?????# ##### #?#### ###? | | ?????# ##????#g#??? | | ####?# ##?????# #??? | | # ######## #??????# #??? | | #?????## #??????# #??? | | #??????### #??????# #??? | | # #???????# #??????# #??? | | # #???????# #??????# #??? | | ## ##?####### #??????# #??? | | ?####??# ## ###????# #??? | | ???????# # ###### #??? | | ???????# #??? | | ????#### #######??? | | ???## ##????????? | | ???# #######????? | | ???# ## ###??? | | ???## ## ### ! ! ##?? | | ????####?## ### ! ! #?? | | ??????????## ## ! ! #?? | | ???????????## ## !!! ##?? | | ????????????## #??? | | ?????????????# #### ## #?? | | ????########## #### #?# #?? | | ????# #??####?? | +----------------------------------------------------+ Best States ------------- Heat Dissipation 25 Energy Generation 10 Energy Capacity 250 Matter Stores 300 Matter Capacity 300 Sight Range 16 Terrain Scan Density 10 Evasion (%) 55 Item Schematics ----------------- None Robot Schematics ------------------ None Fabricated ------------ Nothing Alien Tech Used ----------------- None Achievements -------------- None Challenges ------------ None Game ------ Seed CarbideBlastScrapsphere Manual? 0 Play Time 00:16:51 Cumulative 31.5 hours Start 2025.03.04 @ 16:08:06 End 2025.03.04 @ 17:38:30 Sessions 1 Manual Loads 0 Difficulty Rogue Special Mode None Game No. 62 Rogue 62 Adventurer 0 Explorer 0 Win Type - Total 0 Types 0/0/0/0/0/0/0/0/0 Lore% 20 Gallery% 33 Achievement% 26 Wizard Run 0 Options --------- Layout 2 ASCII 0 Keyboard 0 Movement Mouse Keybinds 0 Fullscreen 1 Font 24/Smallcaps Map View 50x49 Zoom Use 0% Tactical HUD 1 Map Filters NONE Filters NONE Steam 1 RUN: 721e04a3-d0d6-4695-b0f6-39c029106f47